Cogmind - Beta 12 X1 @@@ ROGUE MODE // 2022.07.17 @ 12:54:03 Player: Plexion Result: Self-destructed Performance ------------- Evolutions (4) 2000 Regions Visited (13) 2600 Robots Destroyed (222) 1110 Value Destroyed (8795) 8795 Prototype IDs (36) 720 Alien Tech Used (0) 0 Bonus (4679) 4679 TOTAL SCORE: 19904 Bonus ------- High Alert Combat Kills 2045 Follower Combat Kills 498 Entered Garrisons 600 Used RIF Installer 2000 Aligned with FarCom 300 Friendly Fire -764 Cogmind --------- Core Integrity 746/850 Matter 150/300 Energy 150/150 System Corruption 1% Temperature Cool (0) Movement Treading (170) Location -6/Factory Parts ------- > --- POWER (1) -------- Light Angular Momentum Engine > --- PROPULSION (4) --- Improved Heavy Treads Heavy Siege Treads > --- UTILITY (7) ------ Experimental Heat Sink Huge Storage Unit Improved Medium Armor Plating Improved Medium Armor Plating Graphene Brace Relay Coupler [Sentry] (7) > --- WEAPON (3) ------- Heavy Linear Accelerator > --- INVENTORY (25) --- Micro Fission Core Improved Heavy Treads Relay Coupler [NC] (38) Relay Coupler [NC] (35) Relay Coupler [Grunt] (33) Relay Coupler [Sentry] (21) Relay Coupler [Specialist] (19) Heavy Linear Accelerator Improved Grenade Launcher Longsword +1 Deploy-a-Sentry Peak State ------------ > --- POWER ------------ Light Quantum Reactor > --- PROPULSION ------- Improved Heavy Treads Heavy Siege Treads > --- UTILITY ---------- Experimental Heat Sink High-capacity Storage Unit Hardened Medium Armor Plating Hardened Medium Armor Plating Improved Medium Armor Plating Graphene Brace Relay Coupler [Sentry] > --- WEAPON ----------- Heavy Linear Accelerator Longsword +1 > --- INVENTORY -------- Improved Heavy Treads Improved Medium Armor Plating Relay Coupler [NC] Relay Coupler [NC] Relay Coupler [Grunt] Relay Coupler [Sentry] Relay Coupler [Specialist] Heavy Linear Accelerator Improved Grenade Launcher Remote Datajack Deploy-a-Sentry [Rating: 96] Favorites ----------- Power Cold Fusion Reactor Engine Ion Engine Power Core Light Neutrino Core Reactor Cold Fusion Reactor Propulsion Light Treads Treads Light Treads Wheel Armored Wheel Flight Unit Flying Fortress v7 Utility High-capacity Storage Unit Device Experimental Heat Sink Storage High-capacity Storage Unit Processor Experimental Targeting Computer Hackware Relay Coupler [Sentry] Protection Improved Medium Armor Plating Weapon Heavy Assault Rifle Ballistic Gun Heavy Assault Rifle Ballistic Cannon Heavy Linear Accelerator Launcher Rocket Launcher Special Weapon Remote Datajack Slashing Weapon Longsword +1 Build | -11 -10 -10 -9 -9 -9 -8 -8 -8 -8 -8 -7 -7 -6 ------- Run | Scr Mat Min Mat Min Exi Min Mat Gar Mat Gar Fac Gar Fac Slots Evolved 8 | . . . 2 . . . 2 . . . 2 . 2 Power . | . . . . . . . . . . . . . . Propulsion 2 | . . . . . . . 2 . . . . . . Utility 5 | . . . 2 . . . . . . . 1 . 2 Weapon 1 | . . . . . . . . . . . 1 . . Parts Attached 185 | 6 5 7 7 2 31 1 31 15 18 11 15 28 8 Power 11 | 1 1 . 1 . 2 . . . 1 . 2 2 1 Engine 3 | 1 1 . . . . . . . . . . . 1 Core 5 | . . . 1 . 1 . . . 1 . 2 . . Reactor 3 | . . . . . 1 . . . . . . 2 . Propulsion 43 | 2 . 2 3 . 4 . 17 1 6 3 1 4 . Treads 40 | 2 . 2 3 . 4 . 14 1 6 3 1 4 . Leg . | . . . . . . . . . . . . . . Wheel 1 | . . . . . . . 1 . . . . . . Hover . | . . . . . . . . . . . . . . Flight 2 | . . . . . . . 2 . . . . . . Utility 48 | 1 2 1 2 . 13 . 2 4 1 2 7 9 4 Device 13 | . . . . . 10 . . . . . 1 1 1 Storage 4 | 1 1 . . . 1 . . . . . . . 1 Processor 4 | . 1 1 . . 1 . . 1 . . . . . Hackware 6 | . . . . . . . . . . . 2 4 . Protection 21 | . . . 2 . 1 . 2 3 1 2 4 4 2 Artifact . | . . . . . . . . . . . . . . Weapon 83 | 2 2 4 1 2 12 1 12 10 10 6 5 13 3 Energy Gun . | . . . . . . . . . . . . . . Energy Cannon . | . . . . . . . . . . . . . . Ballistic Gun 40 | 2 1 3 1 1 7 . 10 5 5 4 . 1 . Ballistic Cannon 5 | . . . . . . . . . . . 1 2 2 Launcher 14 | . 1 1 . 1 1 1 2 2 3 1 . 1 . Special Weapon 8 | . . . . . 1 . . . . . 2 4 1 Impact Weapon . | . . . . . . . . . . . . . . Slashing Weapon 16 | . . . . . 3 . . 3 2 1 2 5 . Piercing Weapon . | . . . . . . . . . . . . . . Special Melee Weapon . | . . . . . . . . . . . . . . Unidentified Prototypes 10 | . . . . . 7 . 2 . . . 1 . . Parts Lost 36 | . 1 2 1 . 9 . 4 1 4 3 . 7 4 Power 6 | . 1 . 1 . 1 . . . 1 . . 1 1 Propulsion 11 | . . 1 . . 3 . 3 . . 2 . 2 . Utility 12 | . . 1 . . 3 . . 1 2 . . 3 2 Weapon 7 | . . . . . 2 . 1 . 1 1 . 1 1 Highest Loss Streak 9 | . 1 1 1 . 9 . 2 1 2 1 . 3 1 To Critical Strikes 6 | . . . 1 . 5 . . . . . . . . Average Slot Usage (%) 94 | . 98 100 91 100 95 100 96 91 99 92 92 87 73 Engine 1 | . 12 14 . . . . . . . . . . 3 Core 3 | . . . 9 11 4 . . . 4 9 7 . . Reactor 4 | . . . . . 4 11 9 9 4 . . 6 2 Treads 28 | . 28 28 22 22 22 22 34 36 35 35 30 26 13 Device 4 | . . . . . 7 22 10 . . . 1 3 13 Storage 9 | . 14 14 11 11 11 11 9 9 9 9 7 7 6 Processor 9 | . 13 14 11 11 14 11 7 5 9 9 7 3 . Hackware 1 | . . . . . . . . . . . 9 8 6 Protection 10 | . . . 14 22 8 . 6 14 17 12 11 12 19 Ballistic Gun 13 | . 27 27 22 21 13 11 17 12 16 10 1 . . Ballistic Cannon 1 | . . . . . . . . . . . 7 5 5 Slashing Weapon 3 | . . . . . 7 . . 5 . 4 1 3 . Naked Turns . | . . . . . . . . . . . . . . Heaviest Build 140 | 12 29 31 41 41 62 60 82 88 75 71 95 101 140 Greatest Support 145 | 40 40 40 43 43 43 40 104 104 104 84 92 145 145 Greatest Overweight (x) 1 | . . . . . 1 1 1 . . . 1 1 . Average Overweight (x) . | . . . . . . 1 . . . . . . . Largest Inventory Capacity 25 | 8 15 15 15 15 20 20 20 20 20 20 20 20 25 Average Capacity 18 | 6 10 15 15 15 19 20 20 20 20 20 20 20 21 Most Carried 20 | 2 8 11 15 15 20 20 20 20 20 20 19 20 16 Average Carried 16 | 1 4 9 12 15 17 20 17 19 19 19 17 14 13 Final Capacity 25 | 8 15 15 15 15 20 20 20 20 20 20 20 20 25 Final Carried 20 | 2 8 9 15 15 20 20 20 20 20 19 18 17 13 Class Distribution -------------------- 42% | Scavenger-Mutant 39% | Mutant 17% | Bothacker-Mutant Dominant Class ---------------- Mutant | -10/Materials Mutant | -10/Mines Scavenger-Mutant | -9/Materials Scavenger-Mutant | -9/Mines Scavenger-Mutant | -9/Exiles Scavenger-Mutant | -8/Mines Scavenger-Mutant | -8/Materials Mutant | -8/Garrison Mutant | -8/Materials Mutant | -8/Garrison Bothacker-Mutant | -7/Factory Bothacker-Mutant | -7/Garrison Mutant | -6/Factory Resources | -11 -10 -10 -9 -9 -9 -8 -8 -8 -8 -8 -7 -7 -6 ----------- Run | Scr Mat Min Mat Min Exi Min Mat Gar Mat Gar Fac Gar Fac Matter Collected 6601 | 231 306 273 221 14 681 134 960 549 1192 629 . 1129 282 Remotely . | . . . . . . . . . . . . . . Salvage Created 8654 | . 487 298 342 23 627 156 1317 755 1931 1074 . 1240 404 Parts 564 | . 39 23 27 2 75 23 74 42 120 68 . 47 24 Haulers Intercepted 7 | . 2 . . . . . 4 . 1 . . . . Recyclers Shooed 3 | . . . 1 . . . 1 . 1 . . . . Parts Field Recycled . | . . . . . . . . . . . . . . Retrieved Matter . | . . . . . . . . . . . . . . Parts Self-Destructed . | . . . . . . . . . . . . . . Prevented . | . . . . . . . . . . . . . . Kills | -11 -10 -10 -9 -9 -9 -8 -8 -8 -8 -8 -7 -7 -6 ------- Run | Scr Mat Min Mat Min Exi Min Mat Gar Mat Gar Fac Gar Fac Combat Hostiles Destroyed 184 | . 11 8 9 6 6 13 19 24 29 29 . 18 12 Melee 11 | . . . . . 1 . . 2 1 3 . 4 . Guns 99 | . 9 5 9 . . 1 16 17 24 16 . 2 . Cannons 21 | . . . . . . . . . . . . 9 12 AOE 53 | . 2 3 . 6 5 12 3 5 4 10 . 3 . Classes Destroyed 19 | . 6 1 . 2 2 2 3 . 2 1 . . . Worker 6 | . . . . . . 1 1 . 4 . . . . Builder 5 | . 1 2 . . . . . . 2 . . . . Tunneler 1 | . . . . 1 . . . . . . . . . Hauler 7 | . 2 . . . . . 4 . 1 . . . . Recycler 3 | . . . . . . . 1 . 2 . . . . Operator 4 | . 2 . 1 . . . . . 1 . . . . Turret 1 | . . . . . 1 . . . . . . . . Watcher 10 | . 3 . 1 . . . 2 . 3 . . 1 . Swarmer 53 | . 3 3 4 . . 10 . 13 4 10 . 6 . Grunt 55 | . 8 3 2 . . 2 9 7 11 5 . 4 4 Brawler 7 | . . . . . . . 2 . 2 2 . 1 . Duelist 9 | . . . . . . 1 1 . 1 1 . 4 1 Protector 1 | . . . . . . . . . 1 . . . . Sentry 33 | . . 2 3 . . . 5 4 8 5 . 3 3 Specialist 5 | . . . . . . . . . 1 . . . 4 Hunter 6 | . . . . . . . 2 . 1 3 . . . Programmer 4 | . . . . . . . . . . 3 . 1 . Zionite 8 | . . . . . 8 . . . . . . . . Assembled 11 | . . . . 6 5 . . . . . . . . Guerrilla 1 | . . . . . . . . . . . . 1 . Best Kill Streak 9 | . 7 3 4 7 6 5 4 9 7 9 . 4 4 Combat Bots Only 9 | . 6 3 4 6 5 4 4 9 5 9 . 4 4 Max Kills in Single Turn 4 | . 2 2 2 4 2 2 2 4 2 4 . 2 1 Gunslinging 1 | . . . 1 . . . . 1 . . . . . Exploded 4 | . 1 2 . 4 2 2 2 4 2 4 . 2 . Melee 1 | . . . . . 1 . . 1 1 1 . 1 . Uniques/NPCs Destroyed 4 | . . . . . 4 . . . . . . . . 8R-AWN (-9/Exiles) EX-DEC (-9/Exiles) EX-HEX (-9/Exiles) EX-BIN (-9/Exiles) Combat | -11 -10 -10 -9 -9 -9 -8 -8 -8 -8 -8 -7 -7 -6 -------- Run | Scr Mat Min Mat Min Exi Min Mat Gar Mat Gar Fac Gar Fac Damage Taken 9481 | . 324 516 362 294 951 204 948 832 1432 1030 48 1309 1231 Core 1029 | . 79 75 59 15 60 67 105 65 149 73 . 178 104 Absorbed by Shields . | . . . . . . . . . . . . . . Redirected to Shielding 9 | . . . . . . . . . . 9 . . . Core Remaining (%) 57 | 100 . 38 . . . 49 . . . 28 . 74 . Volleys Fired 583 | . 45 25 26 4 69 12 77 51 99 67 4 73 31 Largest 2 | . 2 2 2 1 2 1 2 2 2 2 1 1 1 Hottest 83 | . 40 46 46 33 60 33 60 60 60 65 5 83 83 Shots Fired 886 | . 87 48 52 4 82 12 149 77 190 76 4 74 31 Gun 745 | . 84 46 52 . 73 1 145 73 187 68 . 16 . Cannon 66 | . . . . . . . . . . . . 35 31 Launcher 46 | . 3 2 . 4 5 11 4 4 3 8 . 2 . Special 29 | . . . . . 4 . . . . . 4 21 . Kinetic 811 | . 84 46 52 . 73 1 145 73 187 68 . 51 31 Thermal 4 | . . . . . 4 . . . . . . . . Explosive 46 | . 3 2 . 4 5 11 4 4 3 8 . 2 . Electromagnetic . | . . . . . . . . . . . . . . Robot Hit Streak 22 | . 11 15 9 2 4 4 11 12 19 8 9 22 15 Robot Miss Streak 7 | . 2 2 5 1 7 1 3 2 6 3 1 2 2 Penetration Max 2 | . . . . . 2 . 1 1 2 2 . 1 . Secondary Targets 10 | . 1 2 1 . . . . 4 1 1 . . . Max Gunslinging Chain 1 | . 1 1 1 . . . . 1 1 1 . . . Shots Hit Robots 646 | . 63 33 32 2 69 4 84 55 142 53 3 84 22 Core Hits 372 | . 33 18 16 21 34 16 54 35 68 41 . 25 11 Critical Kills 38 | . . . . . 3 . 2 5 16 12 . . . Critical Parts Destroyed 70 | . 1 . . . 8 . . 8 33 13 . 7 . Critical Strikes 129 | . 1 . . . 16 . 2 14 52 25 . 13 6 Destroy 112 | . 1 . . . 11 . 2 14 52 25 . 7 . Blast 9 | . . . . . . . . . . . . 3 6 Sever 8 | . . . . . 5 . . . . . . 3 . Melee Attacks 145 | . . . . . 39 . . 28 5 25 3 45 . Impact . | . . . . . . . . . . . . . . Slashing 145 | . . . . . 39 . . 28 5 25 3 45 . Piercing . | . . . . . . . . . . . . . . Sneak Attacks 4 | . . . . . . . . . . . . 4 . Combat Hostiles . | . . . . . . . . . . . . . . Follow-up Attacks . | . . . . . . . . . . . . . . Damage Inflicted 21183 | . 1076 699 521 523 2966 805 1628 1532 2968 1944 . 4733 1788 Guns 8697 | . 787 444 521 . 540 16 1355 944 2717 992 . 381 . Cannons 3615 | . . . . . . . . . . . . 1827 1788 Explosions 3899 | . 289 255 . 523 216 789 271 468 205 627 . 256 . Melee 4967 | . . . . . 2207 . . 120 46 325 . 2269 . Ramming 2 | . . . . . . . 2 . . . . . . Kinetic 12312 | . 787 444 521 . 540 16 1355 944 2717 992 . 2208 1788 Thermal 103 | . 100 . . . 3 . . . . . . . . Explosive 3799 | . 189 255 . 523 216 789 271 468 205 627 . 256 . Electromagnetic . | . . . . . . . . . . . . . . Impact . | . . . . . . . . . . . . . . Slashing 4967 | . . . . . 2207 . . 120 46 325 . 2269 . Piercing . | . . . . . . . . . . . . . . Highest Corruption 6 | . . . . . . . . . . 5 . 6 1 Average Corruption 5 | . . . . . . . . . . 4 . 5 1 Corruption Purged . | . . . . . . . . . . . . . . Corruption Blocked . | . . . . . . . . . . . . . . Effects 34 | . . . . . . . . . . 6 . 26 2 Message Errors 5 | . . . . . . . . . . 2 . 3 . Matter Fused 9 | . . . . . . . . . . 1 . 8 . Heat Flow Errors 5 | . . . . . . . . . . . . 5 . Energy Discharges 2 | . . . . . . . . . . 1 . 1 . Parts Rejected 2 | . . . . . . . . . . . . 2 . Data Loss (minor) 6 | . . . . . . . . . . 2 . 3 1 Data Loss (major) 2 | . . . . . . . . . . . . 2 . Misfires 1 | . . . . . . . . . . . . 1 . Alerts 2 | . . . . . . . . . . . . 1 1 Overload Shots . | . . . . . . . . . . . . . . Overflow Damage 748 | . . . . 17 195 . . 8 32 24 . 334 138 Projectiles 318 | . . . . . . . . . . . . 180 138 Explosions 98 | . . . . 17 . . . 8 32 24 . 17 . Melee 332 | . . . . . 195 . . . . . . 137 . Knockbacks 10 | . . . . . . . . . . . . 4 6 Impact . | . . . . . . . . . . . . . . Kinetic 10 | . . . . . . . . . . . . 4 6 Secondary . | . . . . . . . . . . . . . . Self-Inflicted Damage 394 | . . 23 . 45 25 95 . . 9 168 . 29 . Shots 15 | . . 1 . 2 1 4 . . 1 5 . 1 . Rammed 2 | . . . . . . . 1 . . . . . 1 Targets Rammed 2 | . . . . . . . 1 . . . . . 1 Kicked . | . . . . . . . . . . . . . . Crushed . | . . . . . . . . . . . . . . Highest Temperature 537 | . 6 20 18 8 10 . 2 11 153 32 . 537 17 Average Temperature 57 | . 2 5 10 4 5 . 2 4 40 9 . 134 8 Received Heat Transfer 2607 | . 174 267 102 . 9 36 396 306 594 198 6 294 225 Effects 5 | . . . . . . . . . . . . 5 . Shutdowns 1 | . . . . . . . . . . . . 1 . Damage (minor) 1 | . . . . . . . . . . . . 1 . Damage (major) 3 | . . . . . . . . . . . . 3 . Siege Activations . | . . . . . . . . . . . . . . Robots Corrupted . | . . . . . . . . . . . . . . Combat Hostiles . | . . . . . . . . . . . . . . Parts Fried . | . . . . . . . . . . . . . . Impact Corruptions . | . . . . . . . . . . . . . . Robots Melted . | . . . . . . . . . . . . . . Combat Hostiles . | . . . . . . . . . . . . . . Parts Melted . | . . . . . . . . . . . . . . Heat Transferred 177 | . 150 . . . 27 . . . . . . . . Parts Sabotaged . | . . . . . . . . . . . . . . Parts Stolen . | . . . . . . . . . . . . . . Parts Stripped . | . . . . . . . . . . . . . . Power Chain Reactions . | . . . . . . . . . . . . . . Missiles Intercepted . | . . . . . . . . . . . . . . Alert | -11 -10 -10 -9 -9 -9 -8 -8 -8 -8 -8 -7 -7 -6 ------- Run | Scr Mat Min Mat Min Exi Min Mat Gar Mat Gar Fac Gar Fac Peak Influence 1565 | . 366 301 217 170 . 282 401 1358 1101 1565 891 1378 910 Initial 821 | . . 95 1 54 . . 84 188 651 690 821 484 723 Average 615 | . 200 168 119 158 . 168 237 858 818 1205 805 884 804 Maximum Alert Level 4 | . 1 1 1 . . 1 2 4 4 4 3 4 3 Low Security (%) 19 | 100 40 60 81 100 . 46 26 1 . . . . . Level 1 22 | . 59 39 18 . . 53 73 15 . . . . . Level 2 10 | . . . . . . . . 12 23 8 30 25 . Level 3 30 | . . . . . . . . 40 75 11 69 40 100 Level 4 16 | . . . . . . . . 29 . 79 . 33 . Level 5 . | . . . . . . . . . . . . . . High Security . | . . . . . . . . . . . . . . Max Security . | . . . . . . . . . . . . . . Squads Dispatched 13 | . 3 . . . . . 1 . 5 . 2 . 2 Investigation 2 | . 1 . . . . . . . 1 . . . . Extermination 1 | . . . . . . . . . . . 1 . . Reinforcement 8 | . 2 . . . . . 1 . 2 . 1 . 2 Assault 2 | . . . . . . . . . 2 . . . . Garrison . | . . . . . . . . . . . . . . Intercept . | . . . . . . . . . . . . . . Searches Triggered . | . . . . . . . . . . . . . . Construction Impeded . | . . . . . . . . . . . . . . Haulers Reinforced 1 | . . . . . . . . . . . 1 . . Active Scanning Responses . | . . . . . . . . . . . . . . Cargo Convoy Interrupts . | . . . . . . . . . . . . . . Stealth | -11 -10 -10 -9 -9 -9 -8 -8 -8 -8 -8 -7 -7 -6 --------- Run | Scr Mat Min Mat Min Exi Min Mat Gar Mat Gar Fac Gar Fac Distress Signals 14 | . 1 . 2 . . . 2 . 7 . . 1 1 Communications Jammed . | . . . . . . . . . . . . . . Distress Signals . | . . . . . . . . . . . . . . Times Spotted 283 | . 19 9 13 16 21 11 29 30 50 24 4 35 22 Peak Tracking Total 12 | . 6 3 5 12 9 4 4 4 9 6 2 5 5 Tactical Retreats 18 | . . . 1 . 8 . . 1 3 1 . 2 2 Traps | -11 -10 -10 -9 -9 -9 -8 -8 -8 -8 -8 -7 -7 -6 ------- Run | Scr Mat Min Mat Min Exi Min Mat Gar Mat Gar Fac Gar Fac Traps Triggered 13 | . . . 1 . . . 1 2 1 3 1 3 1 Indirectly . | . . . . . . . . . . . . . . Trap Hack Attempts . | . . . . . . . . . . . . . . Triggered . | . . . . . . . . . . . . . . Disarmed . | . . . . . . . . . . . . . . Reprogrammed . | . . . . . . . . . . . . . . Reused . | . . . . . . . . . . . . . . Traps Extracted . | . . . . . . . . . . . . . . Installed . | . . . . . . . . . . . . . . Triggered . | . . . . . . . . . . . . . . Exploded 3 | . . . . . 3 . . . . . . . . Machines | -11 -10 -10 -9 -9 -9 -8 -8 -8 -8 -8 -7 -7 -6 ---------- Run | Scr Mat Min Mat Min Exi Min Mat Gar Mat Gar Fac Gar Fac Machines Disabled 31 | . 1 . 2 . 10 2 2 4 3 2 . 4 1 Max in Single Turn 2 | . 1 . 1 . 2 1 1 1 1 1 . 1 1 Garrison Access 1 | . . . . . . . . . . . . . 1 Garrison Relay 10 | . . . . . . . . 4 . 2 . 4 . Machines Sabotaged . | . . . . . . . . . . . . . . Garrisons Compromised . | . . . . . . . . . . . . . . Overloaded Fab Kills . | . . . . . . . . . . . . . . Hacking | -11 -10 -10 -9 -9 -9 -8 -8 -8 -8 -8 -7 -7 -6 --------- Run | Scr Mat Min Mat Min Exi Min Mat Gar Mat Gar Fac Gar Fac Machines Accessed 33 | . 4 . 2 . 2 1 5 3 7 3 2 3 1 Terminals 25 | . 3 . 2 . . 1 3 3 6 3 1 3 . Fabricators . | . . . . . . . . . . . . . . Repair Stations . | . . . . . . . . . . . . . . Recycling Units 2 | . 1 . . . . . 1 . . . . . . Scanalyzers . | . . . . . . . . . . . . . . Garrison Access 4 | . . . . . . . 1 . 1 . 1 . 1 Total Hacks 62 | . 14 . 5 . 2 2 11 4 12 4 3 4 1 Successful 32 | . 6 . 2 . 2 2 3 3 4 3 3 3 1 Failed 29 | . 7 . 3 . . . 8 1 8 1 . 1 . Catastrophic 7 | . 1 . . . . . 2 . 4 . . . . Database Lockouts 1 | . 1 . . . . . . . . . . . . Manual 36 | . 14 . 3 . 1 . 10 . 8 . . . . Terminals 54 | . 13 . 5 . . 2 9 4 11 4 2 4 . Fabricators . | . . . . . . . . . . . . . . Repair Stations . | . . . . . . . . . . . . . . Recycling Units 2 | . 1 . . . . . 1 . . . . . . Scanalyzers . | . . . . . . . . . . . . . . Garrison Access 4 | . . . . . . . 1 . 1 . 1 . 1 Terminal Hacks 26 | . 5 . 2 . 2 2 1 3 3 3 2 3 . Record 1 | . . . . . 1 . . . . . . . . Robot Analysis 11 | . 5 . 1 . . . 1 . 2 . 2 . . Open Door 2 | . . . . . . . . 1 . . . 1 . Emergency Access Points 3 | . . . . . . . . 1 . 1 . 1 . Unreport Threat 1 | . . . . . . . . . 1 . . . . Dispatch Records 1 | . . . . . . 1 . . . . . . . Hauler Manifests 1 | . . . 1 . . . . . . . . . . Zone Layout 1 | . . . . . . 1 . . . . . . . Garrison Registry 1 | . . . . . . . . . . . . 1 . Patrol Navigation 1 | . . . . . . . . . . 1 . . . Security Stations 2 | . . . . . . . . 1 . 1 . . . EX-Prototype ID Bank 1 | . . . . . 1 . . . . . . . . Fabricator Hacks . | . . . . . . . . . . . . . . Repair Station Hacks . | . . . . . . . . . . . . . . Recycling Unit Hacks . | . . . . . . . . . . . . . . Scanalyzer . | . . . . . . . . . . . . . . Garrison Access Hacks 4 | . . . . . . . 1 . 1 . 1 . 1 Unlock Access 3 | . . . . . . . 1 . 1 . 1 . . Seal Access 1 | . . . . . . . . . . . . . 1 Unauthorized Hacks 2 | . 1 . . . . . 1 . . . . . . Terminals . | . . . . . . . . . . . . . . Fabricators . | . . . . . . . . . . . . . . Repair Stations . | . . . . . . . . . . . . . . Recycling Units 2 | . 1 . . . . . 1 . . . . . . Mask 1 | . . . . . . . 1 . . . . . . Tunnel 1 | . 1 . . . . . . . . . . . . Scanalyzers . | . . . . . . . . . . . . . . Garrison Access . | . . . . . . . . . . . . . . Data Cores Recovered 2 | . 1 . . . . . . . 1 . . . . Used 1 | . 1 . . . . . . . . . . . . Hacking Detections 20 | . 2 . 2 . . . 4 1 7 1 2 1 . Full Trace Events 2 | . . . . . . . 1 . 1 . . . . Feedback Events . | . . . . . . . . . . . . . . Feedback Blocked . | . . . . . . . . . . . . . . Robot Schematics Acquired . | . . . . . . . . . . . . . . Robots Built . | . . . . . . . . . . . . . . Authchips . | . . . . . . . . . . . . . . Time . | . . . . . . . . . . . . . . Total Robot Build Rating . | . . . . . . . . . . . . . . Part Schematics Acquired . | . . . . . . . . . . . . . . Parts Built . | . . . . . . . . . . . . . . Authchips . | . . . . . . . . . . . . . . Time . | . . . . . . . . . . . . . . Total Part Build Rating . | . . . . . . . . . . . . . . Parts Repaired . | . . . . . . . . . . . . . . Time . | . . . . . . . . . . . . . . Parts Recycled . | . . . . . . . . . . . . . . Recycled Matter . | . . . . . . . . . . . . . . Retrieved Matter . | . . . . . . . . . . . . . . Retrieved Components . | . . . . . . . . . . . . . . Parts Scanalyzed . | . . . . . . . . . . . . . . Part Schematics Acquired . | . . . . . . . . . . . . . . Parts Damaged . | . . . . . . . . . . . . . . Bothacking | -11 -10 -10 -9 -9 -9 -8 -8 -8 -8 -8 -7 -7 -6 ------------ Run | Scr Mat Min Mat Min Exi Min Mat Gar Mat Gar Fac Gar Fac Used RIF Installer 4 | . . . . . . . . 1 . 1 . 2 . Watcher Feeds 1 | . . . . . . . . . . . . 1 . Alert ID Control 1 | . . . . . . . . . . . . 1 . Program Shield 1 | . . . . . . . . . . 1 . . . Robots Hacked 14 | . . . . . . . . . . . 2 12 . Non-combat . | . . . . . . . . . . . . . . Combat 14 | . . . . . . . . . . . 2 12 . Robot Hacks Applied 15 | . . . . . . . . . . . 2 13 . scatter_targeting 2 | . . . . . . . . . . . . 2 . reboot_system 4 | . . . . . . . . . . . . 4 . overwrite_iff 1 | . . . . . . . . . . . . 1 . formatsys_high 8 | . . . . . . . . . . . 2 6 . Relay Couplers Released 38 | . . . . . . . . 13 . 6 . 19 . Machine Destruction 35 | . . . . . . . . 13 . 6 . 16 . Programmers 3 | . . . . . . . . . . . . 3 . Attached 6 | . . . . . . . . . . . 2 4 . Fabnet Peak Effective % . | . . . . . . . . . . . . . . Robots Rewired 4 | . . . . . . . . . . . . 4 . Allies Hacked . | . . . . . . . . . . . . . . Hacks Repelled . | . . . . . . . . . . . . . . Allies | -11 -10 -10 -9 -9 -9 -8 -8 -8 -8 -8 -7 -7 -6 -------- Run | Scr Mat Min Mat Min Exi Min Mat Gar Mat Gar Fac Gar Fac Total Allies 20 | . . 3 . . . . . 2 . . 2 13 . Largest Group 4 | . . 3 3 . . . . 2 . . 2 4 1 Highest-Rated Group 131 | . . 40 40 . . . . 40 . . 48 131 21 Highest-Rated Ally 39 | . . 16 16 . . . . 20 . . 32 39 21 Total Orders 2 | . . . . . . . . . . . . 2 . STAY 1 | . . . . . . . . . . . . 1 . FOLLOW 1 | . . . . . . . . . . . . 1 . Ally Attacks 113 | . . 6 30 . . . . 16 . . 2 58 1 Total Damage 1912 | . . 41 257 . . . . 560 . . 87 932 35 Kills 16 | . . 1 2 . . . . 5 . . 1 7 . Allies Corrupted 1 | . . . . . . . . . . . . 1 . Allies Melted . | . . . . . . . . . . . . . . Intel | -11 -10 -10 -9 -9 -9 -8 -8 -8 -8 -8 -7 -7 -6 ------- Run | Scr Mat Min Mat Min Exi Min Mat Gar Mat Gar Fac Gar Fac Robot Analysis Total 11 | . 5 . 1 . . . 1 . 2 . 2 . . Derelict Logs Recovered 3 | . . 2 . 1 . . . . . . . . . Drone Launches . | . . . . . . . . . . . . . . Drone Recoveries . | . . . . . . . . . . . . . . Exploration | -11 -10 -10 -9 -9 -9 -8 -8 -8 -8 -8 -7 -7 -6 ------------- Run | Scr Mat Min Mat Min Exi Min Mat Gar Mat Gar Fac Gar Fac Turns Passed 15545 | 71 866 916 720 114 3406 685 1496 1362 1700 1199 573 1824 613 Spaces Moved 7090 | 39 429 508 384 65 1274 273 687 700 808 584 299 775 265 Core 1 | 1 . . . . . . . . . . . . . Treads 7089 | 38 429 508 384 65 1274 273 687 700 808 584 299 775 265 Legs . | . . . . . . . . . . . . . . Wheels . | . . . . . . . . . . . . . . Hover . | . . . . . . . . . . . . . . Flight . | . . . . . . . . . . . . . . Fastest Speed 50 | 50 160 160 160 160 160 240 160 162 155 157 155 152 170 Average Speed 182 | 157 160 160 160 160 235 240 164 162 165 166 167 195 170 Slowest Speed 243 | 160 160 160 160 160 240 240 243 162 170 170 237 232 170 Overloaded Moves . | . . . . . . . . . . . . . . Propulsion Burnouts . | . . . . . . . . . . . . . . Robots Hopped . | . . . . . . . . . . . . . . Cave-ins Triggered . | . . . . . . . . . . . . . . Exploration Rate (%) 62 | 3 87 95 46 37 88 90 61 90 73 81 14 90 13 Regions Visited 13 Branch Regions 4 Pre-discovered Areas 4 | . 1 1 . 1 1 . . . . . . . . Known Exits Taken 3 | . . . . . . . 1 . 1 . 1 . . Unknown Exits Taken 7 | 1 1 1 1 1 1 1 . . . . . . . Scrap Searched 3 | . . 1 . 1 . 1 . . . . . . . Spaces Dug 113 | . . 16 . 11 . 40 . . 17 19 3 3 4 Terrain Destroyed 451 | . 38 16 . 43 52 108 7 14 68 61 3 30 11 Melee 14 | . . . . . . . . . 4 4 3 3 . Projectile 98 | . . . . . 18 . 3 7 33 11 . 15 11 AOE 330 | . 38 16 . 43 28 108 4 7 30 45 . 11 . Terrain Rammed . | . . . . . . . . . . . . . . Walls Destroyed . | . . . . . . . . . . . . . . Machines Disabled . | . . . . . . . . . . . . . . Actions | -11 -10 -10 -9 -9 -9 -8 -8 -8 -8 -8 -7 -7 -6 --------- Run | Scr Mat Min Mat Min Exi Min Mat Gar Mat Gar Fac Gar Fac Total 8670 | 46 520 562 440 70 1559 291 928 831 995 724 363 961 380 Wait 492 | . 34 18 10 . 115 6 101 19 58 10 36 14 71 Move 7079 | 38 428 507 383 64 1273 272 687 699 807 583 299 774 265 Hop . | . . . . . . . . . . . . . . Pick Up 76 | 2 7 3 8 . 11 . 10 10 2 14 . 7 2 Fast Attach 43 | 6 1 . 3 . 10 . 10 . 4 2 1 6 . Attach 49 | . 1 2 . . 9 . 7 3 2 4 3 12 6 Detach 26 | . . . . . 7 . 6 . . 1 3 8 1 Swap 93 | . 3 5 4 2 12 1 14 12 12 5 11 10 2 Drop 76 | . 1 2 6 . 14 . 15 9 6 13 3 6 1 Fire 583 | . 45 25 26 4 69 12 77 51 99 67 4 73 31 Melee 145 | . . . . . 39 . . 28 5 25 3 45 . Ram . | . . . . . . . . . . . . . . Kick . | . . . . . . . . . . . . . . Crush 2 | . . . . . . . 1 . . . . . 1 Escape Stasis 2 | . . . . . . . . . . . . 2 . Rewire 4 | . . . . . . . . . . . . 4 . Trap . | . . . . . . . . . . . . . . Miscellaneous . | . . . . . . . . . . . . . . Route ------- -11/Scrapyard -10/Materials (discovered 5 exits: *Mat x3 / [*Min x2]) -10/Mines (discovered 2 exits: *Mat x2) -9/Materials -9/Mines -9/Exiles (discovered 2 exits: *Min x2) -8/Mines (discovered 2 exits: *Mat x2) -8/Materials (discovered 2 exits: *Fac / Gar) -8/Garrison (discovered 3 exits: *Mat x3) -8/Materials (discovered 3 exits: *Fac x2 / Gar) -8/Garrison (discovered 3 exits: *Fac x3) -7/Factory -7/Garrison (discovered 3 exits: *Fac x3) -6/Factory (discovered 1 exit: [*Low]) History --------- Turn | Location | Event 36 | -11/Scrapyard | Discovered new exit (range 15) 72 | -11/Scrapyard | Entered Materials 301 | -10/Materials | Build established: Mutant 323 | -10/Materials | Discovered new exit (range 9) 385 | -10/Materials | Discovered new exit (range 7) 667 | -10/Materials | Discovered new exit (range 16) 764 | -10/Materials | Discovered new exit (range 13) 775 | -10/Materials | Central database locked down 883 | -10/Materials | Discovered new exit (range 16) 938 | -10/Materials | Entered Mines 950 | -10/Mines | Discovered new exit (range 14) 972 | -10/Mines | Core integrity fell below 50% 1191 | -10/Mines | Discovered new exit (range 5) 1209 | -10/Mines | Assisted by bots powering up and referring to "LRC-V3" 1370 | -10/Mines | Learned location of Zion (-6) 1854 | -10/Mines | Entered Materials 1854 | -9/Materials | Accompanied by 3 allies 1854 | -9/Materials | Evolved 2 slots: Utility x2 2257 | -9/Materials | Build established: Scavenger-Mutant 2556 | -9/Materials | Discovered new exit (range 7) 2574 | -9/Materials | Entered Mines 2575 | -9/Mines | Assembled infested the area 2681 | -9/Mines | Deemed a non-threat by the Exiles lab entrance 2681 | -9/Mines | Discovered new exit (range 5) 2688 | -9/Mines | Entered Exiles 2712 | -9/Exiles | Discovered new exit (range 15) 2732 | -9/Exiles | Met 8R-AWN 2752 | -9/Exiles | Met EX-HEX 2867 | -9/Exiles | Met EX-DEC 3088 | -9/Exiles | Met EX-BIN 3114 | -9/Exiles | Aligned with FarCom system 3116 | -9/Exiles | Given EX-Vault access code 3172 | -9/Exiles | Opened EX-Vault 3188 | -9/Exiles | Found Longsword +1 3237 | -9/Exiles | Warned to stay clear of 0b10 Research branches 3401 | -9/Exiles | Discovered new exit (range 14) 3914 | -9/Exiles | Attacked by the Exiles 4061 | -9/Exiles | Destroyed 8R-AWN 4068 | -9/Exiles | Found Prototype Protection 4078 | -9/Exiles | Found Prototype Device 4078 | -9/Exiles | Identified AS-neutralizer No. 17b 4087 | -9/Exiles | Lost 9 parts (1p3n3u2w) 4102 | -9/Exiles | Found Prototype Ballistic Gun 4102 | -9/Exiles | Identified 8R-AWN's Boregun 4108 | -9/Exiles | Found 8R-AWN's Boregun 4117 | -9/Exiles | Found Prototype Protection 4131 | -9/Exiles | Found Prototype Processor 4267 | -9/Exiles | Build established: Mutant 4498 | -9/Exiles | Destroyed EX-DEC 4529 | -9/Exiles | Destroyed EX-HEX 4552 | -9/Exiles | Destroyed EX-BIN 4665 | -9/Exiles | Found Prototype Processor 4665 | -9/Exiles | Identified Exp. Core Analyzer 4686 | -9/Exiles | Build established: Scavenger-Mutant 5246 | -9/Exiles | Identified Exp. Targeting Computer 5261 | -9/Exiles | Identified 8R-AWN's Armor/TH 5267 | -9/Exiles | Identified 8R-AWN's Armor/EX 5523 | -9/Exiles | Found Firepult 5531 | -9/Exiles | Found Flying Fortress v7 5901 | -9/Exiles | Found Deploy-a-Sentry 6094 | -9/Exiles | Stole four prototypes: Longsword +1, Flying Fortress v7, Firepult, Deploy-a-Sentry 6094 | -9/Exiles | Entered Mines 6405 | -8/Mines | Discovered new exit (range 10) 6729 | -8/Mines | Core integrity fell below 50% 6752 | -8/Mines | Discovered new exit (range 9) 6779 | -8/Mines | Entered Materials 6779 | -8/Materials | Evolved 2 slots: Propulsion x2 7867 | -8/Materials | Discovered new exit (range 13) 8275 | -8/Materials | Identified exit to Garrison 8275 | -8/Materials | Entered Garrison 8340 | -8/Garrison | Triggered checkpoint 8382 | -8/Garrison | Build established: Mutant 8383 | -8/Garrison | Garrison Relay disabled 8472 | -8/Garrison | Triggered checkpoint 8513 | -8/Garrison | Triggered checkpoint 8561 | -8/Garrison | Destroyed 9 combat bots 8639 | -8/Garrison | Garrison Relay disabled 8667 | -8/Garrison | Triggered checkpoint 8705 | -8/Garrison | Discovered new exit (range 12) 8727 | -8/Garrison | Rescued a captive Derelict 8728 | -8/Garrison | Rescued a captive Derelict 8864 | -8/Garrison | Triggered checkpoint 8934 | -8/Garrison | Garrison Relay disabled 8954 | -8/Garrison | Triggered checkpoint 9010 | -8/Garrison | Installed Relay Interface Framework 9035 | -8/Garrison | Discovered new exit (range 15) 9143 | -8/Garrison | Triggered checkpoint 9209 | -8/Garrison | Discovered new exit (range 10) 9229 | -8/Garrison | Triggered checkpoint 9260 | -8/Garrison | Garrison Relay disabled 9442 | -8/Garrison | Learned Materials security intel 9506 | -8/Garrison | Spotted B-75 Beast 9637 | -8/Garrison | Entered Materials 10047 | -8/Materials | Discovered new exit (range 5) 10076 | -8/Materials | Build established: Scavenger-Mutant 10437 | -8/Materials | First assault squad dispatched 10746 | -8/Materials | Build established: Mutant 10999 | -8/Materials | Core integrity fell below 50% 11310 | -8/Materials | Discovered new exit (range 11) 11332 | -8/Materials | Identified exit to Garrison 11337 | -8/Materials | Entered Garrison 11447 | -8/Garrison | Triggered checkpoint 11488 | -8/Garrison | Destroyed 9 combat bots 11549 | -8/Garrison | Triggered checkpoint 11581 | -8/Garrison | Garrison Relay disabled 11673 | -8/Garrison | Discovered new exit (range 13) 11810 | -8/Garrison | Triggered checkpoint 11856 | -8/Garrison | Expanded RIF knowledge: Program Shield 11900 | -8/Garrison | Learned Factory security intel 11912 | -8/Garrison | Triggered checkpoint 11961 | -8/Garrison | Discovered new exit (range 14) 12058 | -8/Garrison | Triggered checkpoint 12355 | -8/Garrison | Discovered new exit (range 11) 12386 | -8/Garrison | Triggered checkpoint 12411 | -8/Garrison | Garrison Relay disabled 12527 | -8/Garrison | Build established: Bothacker-Mutant 12536 | -8/Garrison | Entered Factory 12536 | -7/Factory | Evolved 2 slots: Utility x1, Weapon x1 13074 | -7/Factory | Identified exit to Garrison 13109 | -7/Factory | Entered Garrison 13109 | -7/Garrison | Accompanied by 2 allies 13116 | -7/Garrison | Triggered checkpoint 13142 | -7/Garrison | Triggered checkpoint 13188 | -7/Garrison | Garrison Relay disabled 13309 | -7/Garrison | Triggered checkpoint 13340 | -7/Garrison | Triggered checkpoint 13464 | -7/Garrison | Lost 3 parts (1p1n1w) 13472 | -7/Garrison | Discovered new exit (range 12) 13560 | -7/Garrison | Expanded RIF knowledge: Watcher Feeds 13694 | -7/Garrison | Garrison Relay disabled 14140 | -7/Garrison | Rescued a captive Derelict 14149 | -7/Garrison | Rescued a captive Derelict 14186 | -7/Garrison | Garrison Relay disabled 14326 | -7/Garrison | Discovered new exit (range 14) 14385 | -7/Garrison | Discovered new exit (range 58) 14385 | -7/Garrison | Discovered new exit (range 26) 14385 | -7/Garrison | Discovered new exit (range 31) 14802 | -7/Garrison | Triggered checkpoint 14853 | -7/Garrison | Expanded RIF knowledge: Alert ID Control 14870 | -7/Garrison | Garrison Relay disabled 14933 | -7/Garrison | Entered Factory 14933 | -6/Factory | Accompanied by 1 ally 14933 | -6/Factory | Evolved 2 slots: Utility x2 15298 | -6/Factory | Build established: Mutant 15421 | -6/Factory | Discovered new exit (range 14) 15472 | -6/Factory | Spotted B-75 Beast 15546 | -6/Factory | Self-destructed Last Messages --------------- 15504_ K-01 Serf collects debris. 15504_ K-01 Serf cleans the Subcomponent Replicator. 15504_ K-01 Serf collects debris. 15505_ K-01 Serf cleans the Subcomponent Replicator. 15507_ Subcomponent Replicator disabled. 15507_ K-01 Serf collects debris. 15509_ K-01 Serf cleans the Subcomponent Replicator. 15511_ K-01 Serf collects debris. 15512_ K-01 Serf cleans the Subcomponent Replicator. 15513_ K-01 Serf collects debris. 15513_ K-01 Serf destroyed. 15515_ K-01 Serf cleans the Subcomponent Replicator. 15522_ Acquired 5 matter. 15523_ K-01 Serf cleans the Subcomponent Replicator. 15541_ Manufacturing Mainframe disabled. 15544_ Y-54 Guardian Lgt. Treads blasted off. 15544_ Y-54 Guardian destroyed. 15546_ C-30 ARC bursts open, deploying its payload. 15546_ L-41 Fighter unfolds itself. 15546_ G-50 Soldier unfolds itself. Map ----- +----------------------------------------------------+ | ??????????????????????????????? ????###??????????? | | ?????????????????????????????? ??? ??????????? | | ?????????????????????????????? ??? ??? ???? | | ?????????????????????????????? ??? ??? ?? | | ????????????????????????????? ??? ?? #? | | ????????????????????????????""" "?" """ +? | | ???????????????????????????"""" """"" """"" #? | | ????????????????????? ?""""" """"" """"" #? | | ????????????????????" #? | | ????????????????????? """ """ """ #? | | ??????????????????? """"" """"" """"" #? | | ???????????????????? """"" """"" "" " [ #? | | ??????????????????? ## | | ???????????????????? """ """ """ ! | | ??????????????????? """"" """"" """"" """"% | | ??????????????# """"" """"" """"" """"" | | ??????????????# ^^ | | ??????????????# | | ??????????????# ###+################ ## | | ???????????????? ???#%[% ### ## | | ????????????????????????#=""""u"""" ???#"### | | ????????????????????????#!"""" """?????????## ## | | ????????????????????????!!""""l""""?????????#### | | ????????????????????????# """ """" #????# | | ????????????????????????# g g ! #????# | | ????????????????????????#@ g #????# | | ????????????????????????# "" ""??????# < | | ????????????????????????# "F ????????# | | ????????????????????????# """????????# | | ????????????????????????##################???# | | ???????????????????????????????????# #???## | | ???????????????????????????????????# ###### | | ???????????????????????????????????# ##T ## | | ???????????????????????????????????# # | | ???????????????????????????????????# """ + | | ???????????????????????????????????# """ # | | ???????????????????????????????????# """ ### | | ???????????????????????????????????# #?# | | ???????????????????????????????????# """ #?# | | ???????????????????????????????????# """ #?# | | ???????????????????????????????????# """ #?# | | ???????????????????????????????????# #?# | | ??????????????????????????????????????####?# | | ??????????????????????????????????????###### | | ???????????????????????????????# | | ??????????????????????????????????????######### | | ??????????????????????????????????????????????# | | ??????????????????????????????????????????????# | | ??????????????????????????????????????????????# | | ?????????????????????????????????????########## | +----------------------------------------------------+ Best States ------------- Heat Dissipation 71 Energy Generation 25 Energy Capacity 250 Matter Stores 300 Matter Capacity 300 Sight Range 16 Terrain Scan Density 10 Armor Coverage 900 Resistance: TH 10 Resistance: EX 90 Core Shielding 20 Evasion (%) 40 Targeting Accuracy 12 Core Analysis 8 Recoil Reduction 4 Salvage Targeting 1 Relay Coupler Types 2 Relay Coupler Value 49 Item Schematics ----------------- None Robot Schematics ------------------ None Fabricated ------------ Nothing Alien Tech Used ----------------- None Achievements -------------- None Challenges ------------ None Game ------ Seed SkeletonGravmagSplitter Manual? 0 Play Time 01:24:46 Cumulative 259.5 hours Start 2022.07.15 @ 12:26:46 End 2022.07.17 @ 12:54:03 Sessions 5 Manual Loads 0 Difficulty Rogue Special Mode None Game No. 364 Rogue 277 Adventurer 87 Explorer 0 Win Type - Total 8 Types 4/0/3/1/0/0/0/0/0 Lore% 74 Gallery% 80 Achievement% 68 Wizard Run 0 Options --------- ASCII 0 Keyboard 1 Movement Numpad Keybinds 0 Fullscreen 1 Font 18/Smallcaps Map View 76x50 Tactical HUD 1 Map Filters NONE Filters NONE Steam 1 RUN: 0b67f45a-0908-4236-a6c1-47c06fcc4f7e